fUST/lending_fUST_20241110
["ID","MTS","AMOUNT","RATE_DAILY","PERIOD"]
[341766309,1731219047144,-201.69309713,0.00031173,5]
[341766310,1731219047153,-150.73391277,0.00031173,5]
[341766311,1731219047162,-500.0,0.00031173,5]
[341766312,1731219047172,-502.91835753,0.00031173,5]
[341766313,1731219047182,-363.54342715,0.00031173,5]
[341766314,1731219047191,-173.08212177,0.00031173,5]
[341766315,1731219047200,-500.0,0.00031173,5]
[341766316,1731219047210,-500.0,0.00031173,5]
[341766317,1731219047219,-182.00238418,0.00031173,5]
[341766318,1731219047229,-500.0,0.00031173,5]
[341766319,1731219047238,-198.1045853,0.00031173,5]
[341766320,1731219047247,-501.36934794,0.00031173,5]
[341766321,1731219047256,-501.57332505,0.00031173,5]
[341766322,1731219047265,-602.57180783,0.00031173,5]
[341766323,1731219047275,-486.70395308,0.00031173,5]
[341766324,1731219047285,-509.47713182,0.00031173,5]
[341766325,1731219047295,-160.71405468,0.00031199,10]
[341766326,1731219047304,-100006.62354216,0.000312,2]
[341766327,1731219047314,-150.112233,0.000312,19]
[341766329,1731219047324,-151.0,0.000312,7]
[341766330,1731219047333,-151.0,0.000312,7]
[341766331,1731219047343,-151.0,0.000312,7]
[341766332,1731219047352,-151.0,0.000312,7]
[341766334,1731219047362,-151.0,0.000312,7]
[341766335,1731219047371,-151.0,0.000312,7]
[341766336,1731219047384,-151.0,0.000312,7]
[341766338,1731219047393,-280.742421,0.000312,7]
[341766340,1731219047402,-500.0,0.00031232,15]
[341766342,1731219047411,-500.0,0.00031232,120]
[341766344,1731219047420,-500.0,0.00031232,2]
[341766346,1731219047429,-2714.82,0.00031232,2]
[341766348,1731219047438,-500.0,0.00031232,2]
[341766350,1731219047447,-1462.72,0.00031232,2]
[341766352,1731219047456,-860.03,0.00031232,2]
[341766354,1731219047465,-500.0,0.00031232,10]
[341766356,1731219047473,-1771.47,0.00031232,2]
[341766358,1731219047482,-500.0,0.00031232,2]
[341766360,1731219047491,-3883.62,0.00031232,2]
[341766362,1731219047501,-1198.38,0.00031232,2]
[341766364,1731219047510,-1553.13,0.00031232,2]
[341766366,1731219047519,-500.0,0.00031232,2]
[341766368,1731219047528,-467.73126954,0.00031232,2]
[341766370,1731219047538,-899.61,0.00031232,2]
[341766372,1731219047547,-500.0,0.00031232,2]
[341766374,1731219047556,-183.78037529,0.00031232,2]
[341766376,1731219047566,-500.0,0.00031232,2]
[341766378,1731219047575,-570.83,0.00031232,2]
[341766380,1731219047585,-500.0,0.00031232,2]
[341766382,1731219047594,-581.83,0.00031232,2]
[341766384,1731219047604,-500.0,0.00031232,2]
[341766395,1731219047696,-500.0,0.00031232,2]
[341766397,1731219047709,-500.0,0.00031232,2]
[341766399,1731219047718,-500.0,0.00031232,2]
[341766401,1731219047728,-150.112233,0.000313,16]
[341766403,1731219047737,-294.40923966,0.00031352,2]
[341766405,1731219047746,-3412.91,0.00031368,120]
[341766407,1731219047755,-153.28147,0.00031393,7]
[341766409,1731219047765,-150.112233,0.000314,10]
[341766411,1731219047774,-150.112233,0.000314,13]
[341766413,1731219047783,-1007.0444975,0.00031495,2]
[341766415,1731219047792,-589.38,0.00031496,3]
[341766417,1731219047802,-1408.15437048,0.000315,60]
[341766419,1731219047811,-150.112233,0.000315,11]
[341766421,1731219047820,-272.44,0.000315,31]
[341766423,1731219047829,-272.44,0.000315,31]
[341766425,1731219047839,-272.44,0.000315,31]
[341766427,1731219047848,-272.44,0.000315,31]
[341766429,1731219047857,-272.44,0.000315,31]
[341766431,1731219047867,-272.44,0.000315,31]
[341766433,1731219047876,-272.44,0.000315,31]
[341766435,1731219047886,-272.44,0.000315,31]
[341766437,1731219047896,-272.44,0.000315,31]
[341766439,1731219047905,-272.44,0.000315,31]
[341766441,1731219047915,-272.44,0.000315,31]
[341766443,1731219047924,-272.44,0.000315,31]
[341766445,1731219047933,-500.0,0.00031505,2]
[341766447,1731219047942,-500.0,0.00031506,15]
[341766449,1731219047952,-152.319636,0.00031506,7]
[341766451,1731219047962,-152.883535,0.00031506,7]
[341766453,1731219047971,-152.089447,0.00031506,7]
[341766455,1731219047980,-256.749282,0.00031506,7]
[341766457,1731219047989,-154.699475,0.00031506,7]
[341766459,1731219047999,-151.0,0.00031506,7]
[341766461,1731219048008,-151.0,0.00031506,7]
[341766463,1731219048018,-151.0,0.00031506,7]
[341766465,1731219048026,-500.0,0.00031506,2]
[341766467,1731219048035,-2714.82,0.00031506,2]
[341766469,1731219048045,-500.0,0.00031506,2]
[341766471,1731219048055,-1462.72,0.00031506,2]
[341766473,1731219048064,-860.03,0.00031506,2]
[341766475,1731219048073,-1771.47,0.00031506,2]
[341766477,1731219048082,-500.0,0.00031506,2]
[341766479,1731219048091,-3883.62,0.00031506,2]
[341766481,1731219048101,-1198.38,0.00031506,2]
[341766483,1731219048110,-1553.13,0.00031506,2]
[341766485,1731219048119,-500.0,0.00031506,2]
[341766487,1731219048128,-899.61,0.00031506,2]
[341766489,1731219048140,-500.0,0.00031506,2]
[341766491,1731219048150,-500.0,0.00031506,2]
[341766493,1731219048159,-570.83,0.00031506,2]
[341766495,1731219048168,-500.0,0.00031506,2]
[341766498,1731219048177,-581.83,0.00031506,2]
[341766499,1731219048187,-560.02184559,0.00031506,2]
[341766501,1731219048196,-500.0,0.00031506,2]
[341766503,1731219048205,-500.0,0.00031506,2]
[341766506,1731219048214,-11370.04573419,0.00031507,7]
[341766508,1731219048224,-298.68284461,0.00031512,2]
[341766509,1731219048232,-298.68284461,0.00031524,2]
[341766512,1731219048242,-298.68284461,0.00031536,2]
[341766513,1731219048252,-163.86383,0.00031546,2]
[341766515,1731219048261,-298.68284461,0.00031548,2]
[341766518,1731219048271,-298.68284461,0.0003156,2]
[341766519,1731219048280,-298.68284461,0.00031572,2]
[341766522,1731219048290,-153.083267,0.00031582,7]
[341766523,1731219048299,-298.68284461,0.00031584,2]
[341766525,1731219048308,-298.68284461,0.00031596,2]
[341766527,1731219048318,-6248.39279865,0.000316,2]
[341766529,1731219048327,-16136.06056194,0.000316,2]
[341766531,1731219048337,-3000.0,0.000316,8]
[341766533,1731219048346,-272.44,0.000316,31]
[341766535,1731219048355,-272.44,0.000316,31]
[341766537,1731219048364,-272.44,0.000316,31]
[341766539,1731219048374,-272.44,0.000316,31]
[341766541,1731219048385,-272.44,0.000316,31]
[341766543,1731219048394,-272.44,0.000316,31]
[341766545,1731219048403,-272.44,0.000316,31]
[341766547,1731219048413,-272.44,0.000316,31]
[341766549,1731219048422,-272.44,0.000316,31]
[341766551,1731219048431,-272.44,0.000316,31]
[341766553,1731219048440,-272.44,0.000316,31]
[341766555,1731219048449,-272.44,0.000316,31]
[341766557,1731219048458,-272.44,0.000316,31]
[341766559,1731219048466,-272.44,0.000316,31]
[341766561,1731219048475,-272.44,0.000316,31]
[341766563,1731219048484,-272.44,0.000316,31]
[341766565,1731219048493,-272.44,0.000316,31]
[341766567,1731219048502,-272.44,0.000316,31]
[341766569,1731219048511,-272.44,0.000316,31]
[341766571,1731219048521,-272.44,0.000316,31]
[341766573,1731219048530,-272.44,0.000316,31]
[341766575,1731219048539,-272.44,0.000316,31]
[341766577,1731219048548,-272.44,0.000316,31]
[341766579,1731219048558,-272.44,0.000316,31]
[341766581,1731219048567,-500.0,0.000316,36]
[341766583,1731219048577,-298.68284461,0.00031608,2]
[341766585,1731219048586,-294.40923966,0.00031608,2]
[341766587,1731219048596,-3000.0,0.0003161,8]
[341766589,1731219048605,-150.315,0.00031615,2]
[341766591,1731219048615,-190.948,0.00031615,2]
[341766593,1731219048623,-1130.0,0.00031619,2]
[341766595,1731219048635,-529.0,0.00031619,2]
[341766597,1731219048644,-2392.0,0.00031619,2]
[341766599,1731219048654,-218.56835699,0.00031619,2]
[341766601,1731219048663,-169.32651148,0.00031619,2]
[341766603,1731219048673,-361.49240358,0.00031619,2]
[341766605,1731219048683,-500.0,0.00031619,2]
[341766607,1731219048692,-500.0,0.00031619,2]
[341766609,1731219048705,-500.0,0.00031619,2]
[341766611,1731219048715,-275.72581657,0.00031619,2]
[341766613,1731219048724,-440.98793018,0.00031619,2]
[341766615,1731219048734,-500.0,0.00031619,2]
[341766617,1731219048744,-500.0,0.00031619,2]
[341766619,1731219048753,-400.60045273,0.00031619,2]
[341766621,1731219048763,-500.0,0.00031619,2]
[341766623,1731219048772,-500.0,0.00031619,2]
[341766625,1731219048781,-3000.0,0.0003162,8]
[341766627,1731219048791,-3000.0,0.0003163,8]
[341766629,1731219048801,-3714.357358,0.0003164,8]
[341766631,1731219048810,-5742.11985367,0.0003166,30]
[341766633,1731219048819,-5000.0,0.0003166,33]
[341766635,1731219048829,-5000.0,0.0003166,32]
[341766637,1731219048838,-5000.0,0.0003166,32]
[341766639,1731219048848,-5000.0,0.0003166,31]
[341766641,1731219048857,-151.0,0.0003166,7]
[341766643,1731219048866,-265.759883,0.0003166,7]
[341766645,1731219048876,-151.0,0.00031663,7]
[341766647,1731219048888,-151.0,0.00031663,7]
[341766649,1731219048898,-151.0,0.00031663,7]
[341766651,1731219048907,-2500.0,0.00031663,3]
[341766653,1731219048918,-2500.0,0.00031663,3]
[341766655,1731219048927,-2500.0,0.00031672,3]
[341766657,1731219048937,-2500.0,0.00031672,3]
[341766659,1731219048948,-16513.36350006,0.00031673,2]
[341766661,1731219048957,-1000.0,0.0003168,2]
[341766663,1731219048967,-153.0,0.00031681,2]
[341766665,1731219048976,-153.0,0.00031681,2]
[341766667,1731219048985,-153.0,0.00031681,2]
[341766669,1731219048995,-2500.0,0.00031681,3]
[341766671,1731219049004,-2500.0,0.00031681,3]
[341766673,1731219049013,-1424.47415606,0.00031681,3]
[341766675,1731219049023,-249.63622449,0.00031688,2]
[341766677,1731219049032,-4155.98389354,0.00031688,2]
[341766679,1731219049041,-151.0,0.00031688,7]
[341766681,1731219049050,-288.07575835,0.0003169,2]
[341766683,1731219049059,-461.93250416,0.0003169,2]
[341766685,1731219049068,-35645.54152485,0.0003169,2]
[341766687,1731219049077,-70072.86853463,0.0003169,2]
[341766689,1731219049086,-500.0,0.0003169,10]
[341766691,1731219049097,-164.00815458,0.0003169,10]
[341766693,1731219049106,-172.02996759,0.0003169,10]
[341766695,1731219049115,-152.999655,0.0003169,10]
[341766697,1731219049125,-157.76593013,0.0003169,10]
[341766699,1731219049136,-500.0,0.0003169,10]
[341766701,1731219049145,-210.24145977,0.0003169,10]
[341766703,1731219049155,-154.44984779,0.0003169,10]
[341766705,1731219049163,-500.0,0.00031692,3]
[341766707,1731219049172,-500.0,0.00031692,3]
[341766709,1731219049182,-500.0,0.00031692,3]
[341766711,1731219049191,-500.0,0.00031693,3]
[341766713,1731219049201,-509.10455915,0.00031693,12]
[341766715,1731219049211,-501.97524977,0.00031693,12]
[341766717,1731219049221,-1000.0,0.00031696,7]
[341766719,1731219049230,-11187.37575104,0.00031698,2]
[341766722,1731219049239,-151.0,0.00031698,7]
[341766724,1731219049249,-152.532072,0.00031698,7]
[341766726,1731219049259,-151.0,0.00031698,7]
[341766728,1731219049268,-762.67,0.000317,14]
[341766729,1731219049277,-815.5,0.000317,14]
[341766731,1731219049286,-300.0,0.000317,5]
[341766733,1731219049296,-678.82,0.000317,2]
[341766735,1731219049305,-150.112233,0.000317,16]
[341766738,1731219049315,-150.112243,0.000317,11]
[341766739,1731219049324,-272.44,0.000317,31]
[341766742,1731219049334,-272.44,0.000317,31]
[341766744,1731219049344,-272.44,0.000317,31]
[341766746,1731219049355,-272.44,0.000317,31]
[341766748,1731219049365,-272.44,0.000317,31]
[341766750,1731219049375,-272.44,0.000317,31]
[341766752,1731219049387,-272.44,0.000317,31]
[341766754,1731219049397,-272.44,0.000317,31]
[341766756,1731219049406,-272.44,0.000317,31]
[341766757,1731219049415,-272.44,0.000317,31]
[341766759,1731219049425,-272.44,0.000317,31]
[341766761,1731219049434,-272.44,0.000317,31]
[341766763,1731219049443,-272.44,0.000317,31]
[341766765,1731219049452,-272.44,0.000317,31]
[341766767,1731219049461,-272.44,0.000317,31]
[341766769,1731219049470,-272.44,0.000317,31]
[341766771,1731219049479,-272.44,0.000317,31]
[341766773,1731219049489,-272.44,0.000317,31]
[341766775,1731219049498,-272.44,0.000317,31]
[341766777,1731219049508,-272.44,0.000317,31]
[341766779,1731219049517,-272.44,0.000317,31]
[341766782,1731219049527,-272.44,0.000317,31]
[341766784,1731219049536,-272.44,0.000317,31]
[341766786,1731219049546,-272.44,0.000317,31]
[341766787,1731219049556,-9259.01869362,0.00031701,34]
[341766789,1731219049565,-5000.0,0.00031701,32]
[341766791,1731219049574,-5000.0,0.00031701,30]
[341766793,1731219049583,-5000.0,0.00031701,34]
[341766795,1731219049592,-5000.0,0.00031701,35]
[341766797,1731219049601,-155.438035,0.00031701,7]
[341766799,1731219049611,-151.0,0.00031701,7]
[341766801,1731219049620,-151.0,0.00031701,7]
[341766803,1731219049629,-151.0,0.00031701,7]
[341766805,1731219049642,-151.0,0.00031701,7]
[341766807,1731219049651,-151.0,0.00031707,7]
[341766809,1731219049661,-152.800481,0.00031707,7]
[341766812,1731219049670,-151.0,0.00031707,7]
[341766814,1731219049680,-151.0,0.00031707,7]
[341766816,1731219049689,-151.0,0.00031707,7]
[341766818,1731219049700,-151.0,0.00031707,7]
[341766819,1731219049710,-151.0,0.00031707,7]
[341766821,1731219049719,-151.0,0.00031707,7]
[341766824,1731219049729,-151.0,0.00031707,7]
[341766826,1731219049738,-151.0,0.00031707,7]
[341766827,1731219049747,-261.040232,0.00031707,7]
[341766829,1731219049756,-225.840158,0.00031707,7]
[341766832,1731219049766,-151.0,0.00031707,7]
[341766834,1731219049775,-151.0,0.00031707,7]
[341766835,1731219049784,-151.0,0.00031707,7]
[341766837,1731219049793,-151.0,0.00031707,7]
[341766839,1731219049803,-151.0,0.00031707,7]
[341766841,1731219049812,-151.0,0.00031707,7]
[341766843,1731219049821,-151.0,0.00031707,7]
[341766845,1731219049830,-151.0,0.00031707,7]
[341766847,1731219049839,-151.0,0.00031707,7]
[341766849,1731219049849,-151.0,0.00031707,7]
[341766851,1731219049858,-207.109385,0.00031707,7]
[341766853,1731219049867,-155.701028,0.00031707,7]
[341766855,1731219049876,-151.0,0.00031707,7]
[341766857,1731219049887,-151.0,0.00031707,7]
[341766859,1731219049896,-151.0,0.00031707,7]
[341766861,1731219049905,-151.0,0.00031707,7]
[341766863,1731219049914,-151.0,0.00031707,7]
[341766865,1731219049923,-151.0,0.00031707,3]
[341766867,1731219049932,-151.0,0.00031707,7]
[341766869,1731219049941,-151.0,0.00031707,3]
[341766879,1731219049950,-151.0,0.00031707,3]
[341766881,1731219050038,-151.0,0.00031707,7]
[341766883,1731219050047,-151.0,0.00031707,7]
[341766885,1731219050057,-151.0,0.00031707,7]
[341766887,1731219050067,-151.0,0.00031707,3]
[341766889,1731219050076,-267.414841,0.00031707,7]
[341766891,1731219050085,-151.0,0.00031707,3]
[341766893,1731219050095,-263.774245,0.00031707,3]
[341766894,1731219050103,-362.73170302,0.00031708,7]
[341766895,1731219050112,-362.73170302,0.00031708,7]
[341766896,1731219050121,-4012098.35755852,0.00031708,10]
[341766897,1731219050275,-418.35825286,0.00030126,10]
[341766899,1731219050287,-845.40174714,0.00030126,10]
[341766900,1731219050296,-500.0,0.00030136,2]
[341766902,1731219050306,-500.0,0.0003041,2]
[341766904,1731219050316,-29746.9112802,0.00031708,10]
[341767152,1731219714488,163.892112,0.00013973,2]
[341767166,1731220091938,3459.95365858,0.000167,2]
[341767167,1731220099538,214.89467699,0.000123,2]
[341767213,1731220231821,-5000.0,0.00021435,2]
[341767214,1731220231831,-607.63888889,0.00021528,2]
[341767215,1731220231840,-2927.06984928,0.00021652,2]
[341767217,1731220231851,-781.55007964,0.00021652,2]
[341767219,1731220231862,-1291.38007108,0.00021652,2]
[341767221,1731220231871,-300.0,0.00021698,2]
[341767223,1731220231880,-182.0,0.00023586,2]
[341767225,1731220231889,-163.892112,0.00024224,2]
[341767227,1731220231898,-500.0,0.00024986,2]
[341767229,1731220231907,-16591.07209328,0.00025,2]
[341767231,1731220231917,-279.6028043,0.00025016,2]
[341767233,1731220231926,-261.756472,0.00025383,2]
[341767235,1731220231935,-500.0,0.00026301,2]
[341767237,1731220231944,-625.9953932,0.00026603,2]
[341767239,1731220231953,-185.967687,0.00027608,2]
[341767241,1731220231962,-173.94334534,0.00027616,5]
[341767243,1731220231971,-163.81017682,0.00028314,2]
[341767244,1731220231980,-10417.87984499,0.00028314,2]
[341767245,1731220231992,-549.16085,0.00028314,2]
[341767246,1731220232003,-3723.77,0.00028314,2]
[341767247,1731220232014,-8121.0018211,0.00028314,2]
[341767782,1731220237929,-3093.35390959,0.00027508,2]
[341767784,1731220237938,-1780.49276721,0.00028031,2]
[341767786,1731220237950,-3219.50723279,0.00028031,2]
[341767788,1731220237959,-2088.18748391,0.00028314,2]
[341767790,1731220237968,-161.4574527,0.00028314,2]
[341767792,1731220237977,-13786.1093223,0.00028541,2]
[341767794,1731220237986,-272.10810515,0.00029,2]
[341767796,1731220237998,-184.00577479,0.00030036,2]
[341767798,1731220238007,-153.0,0.00030082,30]
[341767800,1731220238016,-212.0390805,0.00030082,30]
[341767802,1731220238025,-153.0,0.00030082,30]
[341767804,1731220238036,-212.0390805,0.00030082,30]
[341767806,1731220238045,-212.0390805,0.00030082,30]
[341767808,1731220238054,-153.0,0.00030082,30]
[341767810,1731220238062,-212.0390805,0.00030082,30]
[341767812,1731220238071,-212.0390805,0.00030082,30]
[341767814,1731220238081,-153.0,0.00030082,30]
[341767816,1731220238091,-212.0390805,0.00030082,30]
[341767818,1731220238102,-153.0,0.00030082,30]
[341767820,1731220238111,-212.0390805,0.00030082,30]
[341767822,1731220238121,-559.52,0.00030126,10]
[341767824,1731220238130,-959.88,0.00030126,10]
[341767826,1731220238142,-500.0,0.00030136,2]
[341767828,1731220238153,-500.0,0.00030136,2]
[341767830,1731220238162,-500.0,0.00030136,2]
[341767832,1731220238172,-161.76408677,0.00030136,2]
[341767834,1731220238182,-500.0,0.00030136,2]
[341767836,1731220238192,-376.15411555,0.00030136,2]
[341767838,1731220238202,-250.0,0.00030136,2]
[341767840,1731220238211,-383.48744995,0.00030136,2]
[341767842,1731220238220,-500.0,0.00030136,2]
[341767844,1731220238229,-400.34835242,0.00030136,2]
[341767846,1731220238238,-503.98862093,0.00030136,2]
[341767848,1731220238247,-184.37853292,0.00030136,2]
[341767849,1731220238258,-608.90226024,0.00030136,2]
[341767851,1731220238266,-500.0,0.00030136,2]
[341767853,1731220238275,-500.0,0.00030136,2]
[341767855,1731220238286,-500.0,0.00030136,2]
[341767857,1731220238296,-500.0,0.00030136,2]
[341767859,1731220238305,-500.0,0.00030136,15]
[341767861,1731220238314,-500.0,0.00030136,2]
[341767863,1731220238323,-500.0,0.00030136,2]
[341767865,1731220238332,-500.0,0.00030136,2]
[341767867,1731220238341,-500.0,0.00030136,2]
[341767869,1731220238350,-521.6,0.00030136,2]
[341767871,1731220238359,-500.0,0.00030136,2]
[341767873,1731220238369,-500.0,0.00030136,2]
[341767875,1731220238378,-500.0,0.00030136,2]
[341767877,1731220238387,-500.0,0.00030136,2]
[341767879,1731220238397,-500.0,0.00030136,2]
[341767881,1731220238406,-500.0,0.00030136,2]
[341767883,1731220238415,-500.0,0.00030136,120]
[341767885,1731220238424,-500.0,0.00030136,2]
[341767887,1731220238433,-500.0,0.00030136,2]
[341767889,1731220238442,-508.07613507,0.00030136,2]
[341767902,1731220238545,-500.0,0.00030136,2]
[341767904,1731220238558,-500.0,0.00030136,2]
[341767906,1731220238568,-500.0,0.00030136,2]
[341767908,1731220238579,-500.0,0.00030136,7]
[341767910,1731220238588,-500.0,0.00030136,2]
[341767912,1731220238597,-500.0,0.00030136,2]
[341767914,1731220238607,-500.0,0.00030136,2]
[341767916,1731220238616,-500.0,0.00030136,2]
[341767918,1731220238625,-500.0,0.00030136,2]
[341767920,1731220238634,-500.0,0.00030136,2]
[341767922,1731220238643,-500.0,0.00030136,2]
[341767924,1731220238652,-500.0,0.00030136,2]
[341767926,1731220238661,-500.0,0.00030136,2]
[341767928,1731220238670,-500.0,0.00030136,2]
[341767930,1731220238678,-500.0,0.00030136,2]
[341767932,1731220238687,-500.0,0.00030136,2]
[341767934,1731220238697,-500.0,0.00030136,2]
[341767936,1731220238706,-526.27976964,0.00030136,2]
[341767938,1731220238715,-500.0,0.00030136,2]
[341767940,1731220238724,-512.04136664,0.00030136,2]
[341767942,1731220238733,-500.0,0.00030136,2]
[341767944,1731220238742,-500.0,0.00030136,2]
[341767945,1731220238751,-511.12058777,0.00030136,2]
[341767947,1731220238760,-619.41,0.00030136,2]
[341767950,1731220238770,-500.0,0.00030136,2]
[341767951,1731220238779,-500.0,0.00030136,2]
[341767953,1731220238789,-500.0,0.00030136,2]
[341767956,1731220238799,-500.0,0.00030136,2]
[341767957,1731220238808,-500.0,0.00030136,2]
[341767959,1731220238817,-2345.66,0.00030136,2]
[341767961,1731220238827,-500.0,0.00030136,2]
[341767963,1731220238836,-500.0,0.00030136,2]
[341767965,1731220238845,-503.6666851,0.00030136,2]
[341767967,1731220238854,-554.28360972,0.00030136,2]
[341767969,1731220238863,-500.0,0.00030136,2]
[341767971,1731220238873,-500.0,0.00030136,2]
[341767973,1731220238882,-500.0,0.00030136,2]
[341767975,1731220238891,-535.32672504,0.00030136,2]
[341767977,1731220238900,-500.0,0.00030136,2]
[341767979,1731220238910,-500.0,0.00030136,2]
[341767981,1731220238919,-500.0,0.00030136,2]
[341767983,1731220238928,-500.0,0.00030136,2]
[341767985,1731220238937,-547.52591499,0.00030136,2]
[341767987,1731220238946,-515.37365437,0.00030136,2]
[341767989,1731220238956,-500.0,0.00030136,2]
[341767991,1731220238967,-500.0,0.00030136,2]
[341767993,1731220238977,-500.0,0.00030136,2]
[341767995,1731220238986,-194.42145591,0.00030136,2]
[341767997,1731220238996,-503.07934457,0.00030136,2]
[341767999,1731220239005,-501.54746863,0.00030136,2]
[341768001,1731220239014,-500.0,0.00030136,2]
[341768003,1731220239023,-507.74440449,0.00030136,2]
[341768004,1731220239031,-500.0,0.00030136,2]
[341768006,1731220239041,-500.0,0.00030136,2]
[341768008,1731220239050,-1264.14,0.00030136,2]
[341768010,1731220239059,-159.27730559,0.00030136,2]
[341768012,1731220239069,-500.0,0.00030136,2]
[341768014,1731220239078,-500.0,0.00030136,2]
[341768016,1731220239088,-500.0,0.00030136,2]
[341768018,1731220239101,-502.97165107,0.00030136,2]
[341768020,1731220239111,-500.0,0.00030136,2]
[341768022,1731220239120,-501.72274154,0.00030136,2]
[341768024,1731220239129,-500.0,0.00030136,2]
[341768026,1731220239139,-500.0,0.00030136,2]
[341768028,1731220239148,-500.0,0.00030136,2]
[341768030,1731220239157,-535.20820361,0.00030136,2]
[341768032,1731220239167,-500.0,0.00030136,2]
[341768034,1731220239176,-500.0,0.00030136,2]
[341768036,1731220239186,-500.0,0.00030136,2]
[341768038,1731220239196,-500.0,0.00030136,2]
[341768040,1731220239206,-500.0,0.00030136,2]
[341768042,1731220239215,-731.03,0.00030136,2]
[341768044,1731220239224,-500.0,0.00030136,2]
[341768045,1731220239233,-500.0,0.00030136,2]
[341768047,1731220239242,-500.0,0.00030136,2]
[341768049,1731220239251,-500.0,0.00030136,2]
[341768051,1731220239260,-500.0,0.00030136,2]
[341768053,1731220239270,-500.0,0.00030136,2]
[341768055,1731220239279,-500.0,0.00030136,2]
[341768057,1731220239289,-500.0,0.00030136,2]
[341768059,1731220239298,-500.0,0.00030136,2]
[341768061,1731220239307,-500.0,0.00030136,2]
[341768063,1731220239316,-500.0,0.00030136,2]
[341768065,1731220239325,-211.82377609,0.00030136,2]
[341768067,1731220239334,-500.0,0.00030136,2]
[341768069,1731220239343,-500.0,0.00030136,2]
[341768071,1731220239352,-500.0,0.00030136,2]
[341768072,1731220239360,-500.0,0.00030136,2]
[341768074,1731220239369,-500.0,0.00030136,2]
[341768076,1731220239378,-500.0,0.00030136,2]
[341768078,1731220239387,-500.0,0.00030136,2]
[341768080,1731220239396,-500.0,0.00030136,2]
[341768082,1731220239406,-515.64368096,0.00030136,2]
[341768084,1731220239415,-501.18864326,0.00030136,2]
[341768086,1731220239424,-500.0,0.00030136,2]
[341768089,1731220239433,-500.0,0.00030136,2]
[341768092,1731220239442,-500.0,0.00030136,2]
[341768095,1731220239451,-500.0,0.00030136,2]
[341768098,1731220239461,-500.0,0.00030136,2]
[341768101,1731220239470,-500.0,0.00030136,2]
[341768104,1731220239479,-500.0,0.00030136,2]
[341768107,1731220239489,-500.0,0.00030136,2]
[341768110,1731220239498,-500.0,0.00030136,2]
[341768112,1731220239507,-500.0,0.00030136,2]
[341768115,1731220239516,-500.0,0.00030136,2]
[341768118,1731220239525,-507.4009118,0.00030136,2]
[341768121,1731220239534,-509.07603731,0.00030136,2]
[341768124,1731220239544,-500.0,0.00030136,2]
[341768127,1731220239553,-500.0,0.00030136,2]
[341768129,1731220239562,-500.0,0.00030136,2]
[341768131,1731220239571,-505.59020633,0.00030136,2]
[341768133,1731220239580,-500.0,0.00030136,2]
[341768136,1731220239589,-500.0,0.00030136,2]
[341768138,1731220239598,-500.0,0.00030136,2]
[341768141,1731220239607,-528.01980124,0.00030136,2]
[341768144,1731220239617,-500.0,0.00030136,2]
[341768147,1731220239625,-409.45769417,0.00030136,2]